bitfinex/quotes_SOLUSD_20250125
["timestamp","ask_amount","ask_price","bid_price","bid_amount"]
[1737831892492,20.0,258.63,258.62,0.063]
[1737831894514,15.27017055,258.64,258.62,0.063]
[1737831894809,1.0,258.7,258.62,0.063]
[1737831894810,3.8656,258.7,258.62,3.9296]
[1737831894999,3.8648,258.75,258.62,3.9296]
[1737831895315,3.8949,258.74,258.62,0.063]
[1737831895518,11.40377055,258.73,258.62,0.063]
[1737831896512,20.0,258.7,258.62,3.9296]
[1737831897297,15.26887055,258.73,258.62,3.9296]
[1737831902115,0.03,258.74,258.62,3.9296]
[1737831902638,0.03,258.74,258.62,23.9296]
[1737831903800,0.03,258.74,258.63,23.98586659]
[1737831904134,0.03,258.74,258.27,40.17740908]
[1737831904135,1.0,258.43,258.27,40.17740908]
[1737831904417,1.0,258.34,258.27,36.30560908]
[1737831905095,1.0,258.36,258.29,3.8714]
[1737831905799,1.0,258.36,258.31,27.61629071]
[1737831906597,1.0,258.36,258.31,23.74509071]
[1737831906898,1.0,258.34,258.26,0.03]
[1737831909422,1.0,258.34,258.28,20.0]
[1737831910621,1.0,258.34,258.29,27.648484]
[1737831911415,1.0,258.38,258.32,20.03]
[1737831911641,1.0,258.38,258.33,3.871]
[1737831912303,0.38649219,258.45,258.32,20.03]
[1737831912304,1.0,258.35,258.32,20.03]
[1737831912507,1.0,258.35,258.32,23.901]
[1737831913724,1.0,258.35,258.32,0.03]
[1737831915899,1.0,258.41,258.35,20.0]
[1737831916307,1.0,258.43,258.35,20.0]
[1737831916511,1.0,258.41,258.35,20.0]
[1737831916713,1.0,258.43,258.35,20.0]
[1737831917521,1.0,258.43,258.37,3.8704]
[1737831918423,1.0,258.4,258.37,3.8704]
[1737831918623,1.0,258.43,258.37,3.8704]
[1737831919335,1.0,258.46,258.38,23.776884]
[1737831919745,1.0,258.46,258.39,3.8701]
[1737831920112,0.03,258.43,258.39,3.8701]
[1737831922328,0.03,258.43,258.4,20.0]
[1737831922510,0.03,258.43,258.4,23.776884]
[1737831922712,0.03,258.43,258.42,43.776884]
[1737831924231,0.03,258.43,258.42,39.685194]
[1737831927243,0.03,258.43,258.42,3.8696]
[1737831932750,0.03,258.43,258.42,27.646484]
[1737831933132,0.03,258.43,258.42,3.8696]
[1737831935747,0.03,258.43,258.32,1.03]
[1737831935748,1.0,258.41,258.36,3.8705]
[1737831935938,0.03,258.43,258.34,3.8708]
[1737831935939,1.0,258.38,258.34,3.8708]
[1737831936948,1.0,258.38,258.32,0.03]
[1737831937146,4.28599219,258.43,258.26,0.03]
[1737831937147,1.0,258.27,258.26,0.03]
[1737831937350,1.0,258.27,258.04,2.5612]
[1737831937351,1.0,258.25,258.06,13.83]
[1737831937647,1.38649219,258.25,258.15,3.8736]
[1737831938251,1.38649219,258.25,258.13,3.8739]
[1737831938553,12.82950918,258.25,258.13,3.8739]
[1737831939153,12.82950918,258.25,258.11,23.776884]
[1737831939845,19.71908324,258.25,258.1,3.8744]
[1737831940146,19.71908324,258.25,258.11,23.776884]
[1737831940531,1.0,258.19,258.09,23.776884]
[1737831940734,1.0,258.19,258.12,20.0]
[1737831941040,1.0,258.14,258.08,3.8747]
[1737831941434,1.0,258.14,258.1,20.0]
[1737831942033,1.0,258.11,258.07,0.063]
[1737831942355,1.0,258.11,258.08,3.8747]
[1737831942547,1.0,258.21,258.14,2.5769]
[1737831942746,1.0,258.25,258.21,1.0]
[1737831942937,1.0,258.27,258.22,20.0]
[1737831943451,1.0,258.27,258.26,20.0]
[1737831943857,1.0,258.27,258.19,23.776884]
[1737831944040,1.0,258.27,258.2,3.8729]
[1737831944247,1.0,258.23,258.2,3.8729]
[1737831944553,1.0,258.25,258.2,23.8729]
[1737831946238,1.0,258.21,258.2,3.8729]
[1737831946461,1.0,258.25,258.2,3.8729]
[1737831947249,1.0,258.36,258.23,21.0]
[1737831947449,1.0,258.36,258.24,23.776884]
[1737831947765,1.0,258.36,258.28,23.776884]
[1737831948163,1.0,258.34,258.29,3.8716]
[1737831948352,1.0,258.32,258.29,3.8716]
[1737831949038,1.0,258.36,258.29,3.8716]
[1737831950452,1.5069,258.41,258.32,23.776884]
[1737831950453,1.0,258.39,258.32,23.776884]
[1737831950652,1.0,258.37,258.32,23.776884]
[1737831953650,1.0,258.34,258.28,23.8717]
[1737831954543,1.0,258.34,258.29,20.0]
[1737831954746,1.0,258.34,258.3,3.8714]
[1737831956355,0.03,258.37,258.3,3.8714]
[1737831957677,0.03,258.37,258.32,3.8711]
[1737831958279,0.03,258.37,258.3,20.0]
[1737831958483,0.03,258.37,258.28,3.8717]
[1737831959559,18.74908324,258.37,258.26,3.8719]
[1737831959882,18.33259105,258.35,258.27,20.0]
[1737831960363,18.36259105,258.37,258.27,20.0]
[1737831960763,0.03,258.37,258.28,23.776884]
[1737831961152,0.03,258.37,258.31,20.0]
[1737831961875,0.03,258.37,258.32,3.8711]
[1737831962955,0.03,258.37,258.29,20.0]
[1737831963274,0.03,258.37,258.3,27.648284]
[1737831964201,6.4923,258.35,258.15,1.0]
[1737831964388,18.33259105,258.23,258.14,3.8738]
[1737831964553,18.33259105,258.23,258.1,0.063]
[1737831965653,18.33259105,258.27,258.11,1.0]
[1737831965860,18.33259105,258.27,258.12,23.776884]
[1737831966093,18.33259105,258.27,258.2,3.9359]
[1737831966578,18.33259105,258.27,258.2,0.063]
[1737831966884,18.33259105,258.25,258.2,0.063]
[1737831967385,0.38649219,258.24,258.2,0.063]
[1737831968257,18.33259105,258.23,258.2,0.063]
[1737831968476,18.71908324,258.25,258.2,0.063]
[1737831968783,18.33259105,258.25,258.2,0.063]
[1737831973886,18.33259105,258.27,258.2,0.063]
[1737831974191,18.33259105,258.27,258.2,3.9358]
[1737831974791,0.38649219,258.31,258.2,3.9358]
[1737831974792,18.33259105,258.29,258.2,3.9358]
[1737831974957,18.71908324,258.31,258.2,3.9358]
[1737831975161,18.33259105,258.31,258.21,20.0]
[1737831975385,18.33259105,258.31,258.2,13.6182]
[1737831977277,0.38649219,258.3,258.21,20.0]
[1737831977484,23.776884,258.27,258.2,0.063]
[1737831977694,18.71908324,258.26,258.2,0.063]
[1737831978288,18.71908324,258.28,258.2,0.063]
[1737831980096,22.59088324,258.28,258.2,0.063]
[1737831981991,18.33259105,258.3,258.2,3.9359]
[1737831982177,0.38649219,258.29,258.2,3.9359]
[1737831982367,18.33259105,258.28,258.2,0.063]
[1737831982700,18.33259105,258.26,258.2,0.063]
[1737831982868,0.38649219,258.25,258.2,0.063]
[1737831984003,4.25869219,258.25,258.2,0.063]
[1737831986298,3.8722,258.25,258.2,0.063]
[1737831986805,4.25869219,258.25,258.2,0.063]
[1737831988295,6.03316989,258.34,258.21,23.776884]
[1737831988485,6.03316989,258.34,258.24,20.0]
[1737831988688,6.03316989,258.34,258.25,23.776884]
[1737831989383,6.03316989,258.34,258.24,20.0]
[1737831989894,6.03316989,258.34,258.25,20.0]
[1737831990108,6.03316989,258.34,258.26,3.872]
[1737831991312,22.18123465,258.35,258.26,3.872]
[1737831991710,18.31053465,258.35,258.26,3.872]
[1737831992216,18.31053465,258.35,258.24,20.0]
[1737831992416,18.31053465,258.35,258.24,23.8723]
[1737831992618,22.21103465,258.37,258.24,23.8723]
[1737831992829,18.34053465,258.37,258.24,23.8723]
[1737831993396,22.21093465,258.37,258.24,23.8723]
[1737831993813,0.03,258.37,258.25,23.776884]
[1737831994311,0.03,258.37,258.26,3.872]
[1737831994510,0.03,258.37,258.27,23.776884]
[1737831994719,0.03,258.37,258.31,25.298584]
[1737831995016,0.03,258.37,258.31,1.5217]
[1737831995319,0.03,258.37,258.3,20.0]
[1737831996025,0.03,258.37,258.31,3.8713]
[1737831997622,2.29592184,258.36,258.3,20.0]
[1737831998526,0.38649219,258.35,258.28,3.8717]
[1737831999026,20.60645649,258.36,258.28,3.8717]
[1737831999716,18.31053465,258.36,258.26,3.872]
[1737831999923,18.31053465,258.34,258.22,3.8725]
[1737832000217,0.38649219,258.33,258.22,3.8725]
[1737832000408,22.18113465,258.36,258.23,20.0]
[1737832001523,0.96800743,258.35,258.24,3.8723]
[1737832002229,0.96800743,258.35,258.24,27.649184]
[1737832002834,18.31053465,258.36,258.24,27.649184]
[1737832003204,0.03,258.37,258.24,27.649184]
[1737832003725,0.03,258.37,258.27,20.0]
[1737832003905,0.03,258.37,258.25,23.776884]
[1737832004105,0.03,258.37,258.28,20.0]
[1737832004307,0.03,258.37,258.29,23.776884]
[1737832006127,0.03,258.37,258.3,3.8714]
[1737832007628,0.03,258.37,258.28,23.8716]
[1737832007629,0.41649219,258.37,258.28,23.8716]
[1737832008228,0.03,258.37,258.28,23.8716]
[1737832012128,0.03,258.37,258.26,3.872]
[1737832013223,11.44465079,258.34,258.24,0.063]
[1737832013402,11.44465079,258.34,258.24,3.9353]
[1737832013605,11.44465079,258.36,258.25,20.0]
[1737832014312,11.44465079,258.36,258.25,23.872]
[1737832014908,11.44465079,258.36,258.24,0.063]
[1737832014909,11.44465079,258.26,258.24,0.063]
[1737832015109,0.38649219,258.25,258.24,0.063]
[1737832016328,4.25869219,258.25,258.24,0.063]
[1737832016510,5.22705946,258.25,258.24,0.063]
[1737832017826,11.44465079,258.23,258.2,0.063]
[1737832018638,3.8726,258.22,258.2,0.063]
[1737832020630,11.44465079,258.21,258.2,0.063]
[1737832020811,11.83114298,258.21,258.2,0.063]
[1737832023419,12.41322263,258.21,258.2,0.063]
[1737832024625,12.41322263,258.21,258.2,0.0001]
[1737832025923,14.71237971,258.21,258.2,0.0001]
[1737832029548,11.44465079,258.21,258.2,0.0001]
[1737832036854,15.31745079,258.21,258.2,0.0001]
[1737832038763,16.28614127,258.21,258.2,0.0001]
[1737832040062,16.31614127,258.21,258.2,0.0001]
[1737832040358,40.09302527,258.21,258.2,0.0001]
[1737832040557,15.73394298,258.21,258.2,0.0001]
[1737832041665,15.34745079,258.21,258.2,0.0001]
[1737832042165,17.6458152,258.21,258.2,0.0001]
[1737832043965,15.34745079,258.21,258.2,0.0001]
[1737832045246,16.31612799,258.21,258.2,0.0001]
[1737832048161,25.99812799,258.21,258.1,0.063]
[1737832048362,11.44465079,258.17,258.1,0.063]
[1737832049489,3.8735,258.16,258.1,0.063]
[1737832053591,11.20935097,258.2,258.1,3.9374]
[1737832055265,0.96860727,258.19,258.1,3.9374]
[1737832055664,4.84170727,258.19,258.1,3.9374]
[1737832056980,0.96860727,258.18,258.1,3.9374]
[1737832057166,7.33635097,258.16,258.1,0.063]
[1737832057984,20.0,258.08,258.07,0.063]
[1737832058191,27.72284316,258.08,258.07,0.063]
[1737832059278,3.8749,258.07,258.06,0.03]
[1737832059586,3.8749,258.07,258.0,0.063]
[1737832059801,11.481963,258.01,258.0,0.063]
[1737832061877,11.481963,258.03,258.0,0.063]
[1737832062064,0.96860727,258.01,258.0,0.063]
[1737832062269,3.28002328,258.01,258.0,0.063]
[1737832062680,3.28002328,258.01,258.0,20.063]
[1737832062885,3.28002328,258.01,258.0,43.839884]
[1737832063902,2.31141601,258.01,258.0,43.839884]
[1737832064198,11.481963,258.12,258.01,27.652684]
[1737832064570,0.38649219,258.17,258.04,20.0]
[1737832064778,11.481963,258.14,258.04,20.0]
[1737832065072,11.481963,258.12,258.05,3.8752]
[1737832066088,0.96882007,258.11,258.02,23.8756]
[1737832068682,11.481963,258.12,258.02,23.8756]
[1737832070910,11.481963,258.16,258.04,3.8753]
[1737832071115,0.03,258.2,258.08,20.0]
[1737832071685,0.96865185,258.19,258.08,20.0]
[1737832072409,0.96865185,258.19,258.09,3.8746]
[1737832073099,0.96865185,258.18,258.09,3.8746]
[1737832073508,3.2799814,258.18,258.1,23.776884]
[1737832073684,3.2799814,258.18,258.1,1.5879]
[1737832074683,0.96865185,258.18,258.1,1.5879]
[1737832074904,0.96865185,258.18,258.11,3.8743]
[1737832075292,0.063,258.19,258.11,3.8743]
[1737832077323,0.38649219,258.18,258.09,3.8745]
[1737832077695,11.481963,258.17,258.03,1.5879]
[1737832078018,0.38649219,258.16,258.04,3.8753]
[1737832078697,0.38649219,258.16,258.02,3.8755]
[1737832078698,11.481963,258.12,258.02,3.8755]
[1737832078900,0.38649219,258.11,258.02,3.8755]
[1737832079103,11.481963,258.04,258.0,0.063]
[1737832079329,0.38649219,258.03,258.0,0.063]
[1737832080593,0.38649219,258.07,258.0,0.063]
[1737832080794,14.76166809,258.1,258.0,3.9389]
[1737832081205,0.96858857,258.02,258.0,3.9389]
[1737832081700,3.27970509,258.02,258.0,3.9389]
[1737832083023,2.31111652,258.02,258.0,3.9389]
[1737832083220,3.8744,258.11,258.0,3.9389]
[1737832083806,11.481963,258.1,258.0,3.9389]
[1737832084215,11.481963,258.1,258.0,0.063]
[1737832084413,11.481963,258.08,258.0,0.063]
[1737832084617,0.38649219,258.07,258.0,0.063]
[1737832086420,3.27753984,258.09,258.0,3.9388]
[1737832086628,0.9690152,258.06,258.0,3.9388]
[1737832086922,3.27753984,258.06,258.0,3.9388]
[1737832087831,2.30852464,258.06,258.0,3.9388]
[1737832088128,0.063,258.08,258.0,3.9388]
[1737832089326,11.044963,258.11,258.0,3.9388]
[1737832089530,0.96901392,258.07,258.0,3.9388]
[1737832091102,3.8743,258.11,258.0,3.9388]
[1737832092534,0.96899268,258.1,258.0,3.9388]
[1737832092911,0.96899268,258.1,258.0,0.063]
[1737832093113,0.96899268,258.1,258.01,3.8756]
[1737832093412,2.30687008,258.09,258.01,3.8756]
[1737832094332,0.96899268,258.08,258.01,3.8756]
[1737832096529,0.96899268,258.08,258.03,23.776884]
[1737832097208,0.96899268,258.08,258.02,23.776884]
[1737832097630,0.96899268,258.12,258.02,23.776884]
[1737832098640,0.96899268,258.12,258.03,3.8755]
[1737832098838,0.96899268,258.12,258.06,43.776884]
[1737832099840,3.8733,258.18,258.06,43.776884]
[1737832100014,11.544963,258.19,258.06,43.776884]
[1737832100214,0.063,258.19,258.06,43.776884]
[1737832100741,0.96863064,258.18,258.07,3.8749]
[1737832101524,1.35512283,258.18,258.08,23.776884]
[1737832101727,13.78878157,258.17,258.08,23.776884]
[1737832102243,2.30681857,258.17,258.08,23.776884]
[1737832102740,0.96863064,258.16,258.08,23.776884]
[1737832103949,0.96863064,258.18,258.12,23.776884]
[1737832105235,0.96863064,258.18,258.14,23.776884]
[1737832105427,0.063,258.19,258.14,23.776884]
[1737832106865,0.063,258.19,258.14,27.650584]
[1737832112548,0.063,258.19,258.17,20.0]
[1737832112732,0.063,258.19,258.18,23.776884]
[1737832113955,0.063,258.19,258.18,27.650084]
[1737832114735,0.063,258.19,258.1,13.8]
[1737832114928,0.063,258.19,258.11,3.8743]
[1737832115638,0.063,258.19,258.12,23.776884]
[1737832116329,0.063,258.19,258.11,23.776884]
[1737832116525,0.063,258.19,258.11,27.651184]
[1737832116729,3.9361,258.19,258.11,27.651184]
[1737832117130,0.063,258.19,258.11,27.651184]
[1737832122437,0.063,258.19,258.15,23.776884]
[1737832123355,0.063,258.19,258.13,23.776884]
[1737832123551,0.063,258.19,258.16,20.0]
[1737832124851,0.063,258.19,258.17,27.650184]
[1737832131169,0.0001,258.19,258.17,42.450184]
[1737832131875,0.03,258.24,258.17,42.450184]
[1737832132069,0.03,258.24,258.2,43.776884]
[1737832133253,0.03,258.24,258.22,23.776884]
[1737832134955,0.063,258.34,258.27,20.0]
[1737832135270,0.063,258.34,258.3,23.776884]
[1737832135650,0.063,258.34,258.33,20.0]
[1737832136763,0.063,258.34,258.28,17.6717]
[1737832137159,0.063,258.34,258.29,23.776884]
[1737832138171,0.063,258.34,258.29,27.648384]
[1737832138468,0.063,258.34,258.29,23.776884]
[1737832139173,0.063,258.34,258.28,23.776884]
[1737832139483,0.063,258.34,258.28,27.648484]
[1737832140674,0.063,258.34,258.23,20.0]
[1737832140879,0.063,258.34,258.24,20.0]
[1737832141677,0.063,258.34,258.25,27.649084]
[1737832142065,3.9338,258.34,258.25,27.649084]
[1737832142266,0.063,258.34,258.25,27.649084]
[1737832143976,3.9339,258.34,258.25,27.649084]
[1737832146077,0.063,258.34,258.25,27.649084]
[1737832147082,0.063,258.34,258.28,20.0]
[1737832147253,0.063,258.34,258.29,23.776884]
[1737832147456,0.063,258.34,258.29,37.576884]
[1737832147961,0.063,258.34,258.32,20.0]
[1737832148159,0.063,258.34,258.33,23.776884]
[1737832148886,0.063,258.34,258.31,23.776884]
[1737832150177,0.063,258.34,258.3,23.776884]
[1737832150487,0.063,258.34,258.33,23.776884]
[1737832151174,0.063,258.34,258.3,3.8714]
[1737832151355,0.063,258.34,258.29,13.8]
[1737832153389,3.9339,258.34,258.29,13.8]
[1737832154393,3.9339,258.34,258.21,3.8728]
[1737832154583,15.37747132,258.34,258.21,3.8728]
[1737832154790,15.37747132,258.34,258.22,23.776884]
[1737832154974,15.37747132,258.34,258.21,3.8728]
[1737832155686,15.37747132,258.34,258.22,23.776884]
[1737832155891,15.37747132,258.34,258.22,27.649384]
[1737832156077,1.6391,258.3,258.2,100.3028]
[1737832157190,1.6391,258.3,258.21,23.776884]
[1737832157499,10.3356,258.31,258.21,23.776884]
[1737832158298,10.3356,258.31,258.22,3.8726]
[1737832160692,10.3356,258.31,258.21,23.776884]
[1737832161192,11.44357132,258.3,258.2,0.03]
[1737832161702,7.32924571,258.3,258.2,0.03]
[1737832162083,7.26529876,258.3,258.2,0.03]
[1737832162394,3.8716,258.29,258.2,0.03]
[1737832166089,15.32287071,258.29,258.2,0.03]
[1737832166299,15.7093629,258.29,258.2,0.03]
[1737832167405,2.29988857,258.28,258.2,0.03]
[1737832169005,15.7093629,258.29,258.2,0.03]
[1737832170391,11.45127071,258.25,258.2,0.03]
[1737832171405,0.38649219,258.24,258.2,0.03]
[1737832172483,2.68553985,258.24,258.2,0.03]
[1737832172802,3.8725,258.23,258.2,0.03]
[1737832176711,15.32327071,258.27,258.2,0.03]
[1737832177315,11.45127071,258.25,258.2,0.03]
[1737832180014,3.8723,258.24,258.2,0.03]
[1737832180518,11.45127071,258.23,258.2,0.03]
[1737832180932,15.32377071,258.23,258.2,0.03]
[1737832182609,11.45127071,258.21,258.2,0.03]
[1737832184727,15.32407071,258.21,258.2,0.03]
[1737832185627,17.62146777,258.21,258.2,0.03]
[1737832185821,13.50607031,258.21,258.2,0.03]
[1737832191711,20.0,258.18,258.11,0.03]
[1737832192026,7.33587325,258.14,258.11,0.03]
[1737832192215,0.38649219,258.13,258.11,0.03]
[1737832192528,7.33587325,258.14,258.11,0.03]
[1737832193641,3.874,258.13,258.11,0.03]
[1737832197829,3.8738,258.15,258.11,0.03]
[1737832200642,4.26029219,258.15,258.11,0.03]
[1737832201921,3.8738,258.15,258.11,0.03]
[1737832202914,3.874,258.13,258.11,0.03]
[1737832204018,3.8737,258.15,258.11,0.03]
[1737832206016,15.05823825,258.23,258.11,23.806884]
[1737832206236,11.594865,258.23,258.11,23.806884]
[1737832206638,7.33587325,258.25,258.11,23.806884]
[1737832207141,0.063,258.2,258.11,23.806884]
[1737832207447,0.063,258.2,258.13,23.776884]
[1737832208539,0.063,258.2,258.15,23.776884]
[1737832208920,0.063,258.2,258.13,23.776884]
[1737832210642,0.063,258.2,258.15,23.776884]
[1737832211028,0.063,258.2,258.18,20.0]
[1737832211228,0.063,258.2,258.19,25.280484]
[1737832212227,0.063,258.3,258.23,23.776884]
[1737832212456,0.063,258.3,258.27,23.776884]
[1737832212634,7.33587325,258.28,258.2,3.8729]
[1737832212837,0.063,258.3,258.19,3.873]
[1737832212838,7.33587325,258.26,258.19,3.873]
[1737832213052,7.33587325,258.26,258.14,1.5036]
[1737832213230,7.33587325,258.26,258.15,3.8737]
[1737832214753,11.20797325,258.26,258.15,3.8737]
[1737832217677,11.20797325,258.26,258.16,23.776884]
[1737832217877,11.20797325,258.26,258.13,3.8739]
[1737832217878,7.33587325,258.24,258.13,3.8739]
[1737832218389,7.33587325,258.24,258.14,23.776884]
[1737832219183,3.8725,258.23,258.14,23.776884]
[1737832221273,3.8725,258.23,258.14,3.8738]
[1737832225163,7.33587325,258.2,258.13,23.776884]
[1737832229373,11.20887325,258.2,258.11,0.03]
[1737832229786,11.20887325,258.2,258.1,18.03]
[1737832229966,0.38649219,258.19,258.09,3.8746]
[1737832230296,7.33587325,258.18,258.09,3.8746]
[1737832230487,7.33587325,258.18,258.08,23.776884]
[1737832230687,3.8734,258.17,258.08,23.776884]
[1737832231194,3.8734,258.17,258.13,0.03]
[1737832232599,7.72236544,258.16,258.13,0.03]
[1737832232771,7.33587325,258.14,258.13,0.03]
[1737832234188,9.6259366,258.14,258.13,0.03]
[1737832234703,13.4997366,258.14,258.13,0.03]
[1737832235069,11.20967325,258.14,258.13,0.03]
[1737832235606,13.49935411,258.14,258.13,0.03]
[1737832236389,2.28968086,258.14,258.13,0.03]
[1737832237679,9.62555411,258.14,258.13,0.03]
[1737832238293,7.33587325,258.14,258.13,0.03]
[1737832238492,7.33587325,258.16,258.13,0.03]
[1737832239097,17.66457325,258.2,258.13,0.03]
[1737832239307,13.79157325,258.2,258.13,0.03]
[1737832239998,17.66457325,258.2,258.13,0.03]
[1737832240183,7.33587325,258.18,258.13,0.03]
[1737832240385,7.33587325,258.16,258.13,0.03]
[1737832240585,7.33587325,258.14,258.13,0.03]
[1737832242801,3.8738,258.15,258.13,0.03]
[1737832248801,7.33587325,258.16,258.13,0.03]
[1737832249100,6.4557,258.2,258.13,0.03]
[1737832249999,10.3287,258.2,258.13,0.03]
[1737832250199,2.28998658,258.19,258.13,0.03]
[1737832250502,6.16308658,258.19,258.13,0.03]
[1737832251408,3.8731,258.19,258.13,0.03]
[1737832251706,5.4832,258.24,258.13,0.03]
[1737832252023,7.33587325,258.27,258.15,20.0]
[1737832252179,7.33587325,258.29,258.16,23.776884]
[1737832252386,9.06337325,258.3,258.16,23.776884]
[1737832252988,3.8716,258.29,258.16,23.776884]
[1737832253311,12.93487325,258.3,258.16,23.776884]
[1737832254106,12.93487325,258.3,258.18,23.776884]
[1737832255106,11.27037325,258.3,258.16,43.776884]
[1737832255303,11.27037325,258.3,258.16,47.650384]
[1737832255618,3.8716,258.29,258.16,47.650384]
[1737832257914,7.39887325,258.3,258.16,47.650384]
[1737832258116,0.063,258.3,258.16,57.334284]
[1737832258503,0.063,258.3,258.16,71.134284]
[1737832258922,11.27037325,258.3,258.16,71.134284]
[1737832259219,7.33587325,258.24,258.16,61.450384]
[1737832259811,7.33587325,258.24,258.16,20.0]
[1737832259987,7.33587325,258.18,258.13,0.03]
[1737832260510,7.33587325,258.16,258.13,0.03]
[1737832262716,7.33587325,258.18,258.13,0.03]
[1737832265420,7.33587325,258.2,258.13,0.03]
[1737832265616,7.33587325,258.22,258.13,0.03]
[1737832265809,1.6645,258.25,258.13,0.03]
[1737832265810,7.33587325,258.24,258.13,23.806884]
[1737832266023,1.6645,258.25,258.13,23.806884]
[1737832266221,0.063,258.18,258.13,23.806884]
[1737832266725,0.063,258.18,258.17,23.776884]
[1737832267605,0.063,258.18,258.15,3.8736]
[1737832267921,0.063,258.18,258.16,23.776884]
[1737832268921,0.063,258.18,258.13,0.03]
[1737832269119,11.51939918,258.18,258.13,0.03]
[1737832269911,0.063,258.18,258.13,0.03]
[1737832271198,11.51939918,258.18,258.13,0.03]
[1737832271826,15.39259918,258.18,258.13,0.03]
[1737832272622,11.51939918,258.18,258.13,0.03]
[1737832272819,0.063,258.18,258.13,0.03]
[1737832277233,0.063,258.18,258.13,23.806884]
[1737832277623,0.063,258.18,258.15,23.776884]
[1737832279215,0.063,258.18,258.14,3.8738]
[1737832279825,0.063,258.18,258.13,0.03]
[1737832280010,11.45639918,258.17,258.13,0.03]
[1737832281629,15.32979918,258.17,258.13,0.03]
[1737832282329,0.38649219,258.16,258.13,0.03]
[1737832283018,4.26019219,258.16,258.13,0.03]
[1737832283428,3.8737,258.16,258.13,0.03]
[1737832283938,18.44009137,258.17,258.13,0.03]
[1737832285611,6.5972,258.17,258.13,0.03]
[1737832288432,0.063,258.18,258.14,23.776884]
[1737832289214,0.063,258.18,258.14,20.0]
[1737832289625,0.063,258.18,258.13,23.806884]
[1737832289841,0.063,258.18,258.14,3.8738]
[1737832291053,0.063,258.18,258.14,23.8738]
[1737832299356,0.063,258.18,258.13,0.03]
[1737832299931,0.063,258.18,258.13,3.9039]
[1737832305761,0.063,258.18,258.14,23.776884]
[1737832305947,0.063,258.18,258.14,27.650584]
[1737832310260,0.063,258.18,258.13,0.03]
[1737832314770,0.063,258.18,258.15,23.776884]
[1737832315437,0.063,258.18,258.14,3.8738]
[1737832316445,0.063,258.18,258.13,0.03]
[1737832324163,3.8731,258.2,258.13,0.03]
[1737832325061,2.29747557,258.19,258.13,0.03]
[1737832326262,6.17057557,258.19,258.13,0.03]
[1737832326468,2.29747557,258.18,258.13,0.03]
[1737832328384,2.29747557,258.17,258.14,23.776884]
[1737832329471,2.29747557,258.17,258.15,3.8737]
[1737832330079,0.063,258.2,258.15,3.8737]
[1737832332257,0.063,258.2,258.16,23.776884]
[1737832335669,0.063,258.2,258.18,23.776884]
[1737832336581,0.063,258.2,258.17,20.0]
[1737832336785,0.063,258.2,258.18,23.776884]
[1737832337277,0.063,258.2,258.19,27.649984]
[1737832345686,0.063,258.2,258.14,23.4846]
[1737832345987,0.063,258.2,258.15,3.8737]
[1737832346486,0.063,258.2,258.13,3.9039]
[1737832346859,0.063,258.2,258.14,23.776884]
[1737832347261,0.063,258.2,258.13,0.03]
[1737832347580,0.063,258.2,258.14,3.8738]
[1737832348882,0.063,258.2,258.14,0.80456951]